fUSD/lending_fUSD_20240214
["ID","MTS","AMOUNT","RATE_DAILY","PERIOD"]
[313963917,1707868983764,205.0,0.00021311,2]
[313963918,1707869058865,2192.05,0.00021898,2]
[313963925,1707869231476,394.29,0.00020037,2]
[313963944,1707869311232,161.25,0.00021885,2]
[313964023,1707869431493,-490.60845201,0.00021916,2]
[313964024,1707869431503,-1000.0,0.00021917,2]
[313964025,1707869431513,-250.0,0.00021918,2]
[313964026,1707869431522,-150.0,0.00021927,2]
[313964027,1707869431532,-177.27,0.00021998,2]
[313964028,1707869431542,-1218.41000137,0.00022,2]
[313964029,1707869431586,-308.807424,0.00022,2]
[313964030,1707869431686,-1058.16664763,0.00022,2]
[313964031,1707869431696,-162.21,0.0002219,2]
[313964032,1707869431705,-68.26685179,0.00022301,2]
[313964036,1707869438932,-326.02314821,0.00022301,2]
[313964037,1707869438943,-152.15237163,0.0002247,2]
[313964038,1707869438953,-694.62448016,0.000225,2]
[313964039,1707869438975,-805.37551984,0.000225,2]
[313964040,1707869438984,-202.0,0.00022535,2]
[313964041,1707869438994,-152.15237158,0.00022542,2]
[313964042,1707869439004,-177.27,0.00022546,2]
[313964043,1707869439014,-152.15237158,0.00022613,2]
[313964044,1707869439024,-499.99,0.00022613,2]
[313964045,1707869439033,-152.15237158,0.00022685,2]
[313964046,1707869439043,-592.27500974,0.00022695,2]
[313964047,1707869439093,-424.2870722,0.00022695,2]
[313964048,1707869439103,-152.15237158,0.00022757,2]
[313964049,1707869439113,-169.15298183,0.000228,2]
[313964050,1707869439125,-242.50701817,0.000228,2]
[313964051,1707869439135,-200.0,0.00022814,2]
[313964052,1707869439144,-200.0,0.00022815,2]
[313964053,1707869439154,-98.77022138,0.00022815,2]
[313964054,1707869439165,-101.22977862,0.00022815,2]
[313964055,1707869439175,-200.0,0.00022815,2]
[313964056,1707869439185,-119.65905628,0.00022815,2]
[313964057,1707869439196,-313.89851893,0.00022815,2]
[313964221,1707869440483,-366.44242479,0.00022815,2]
[313964222,1707869440493,-14.56035656,0.00022815,2]
[313964303,1707869442468,-185.43964344,0.00022815,2]
[313964304,1707869442478,-200.0,0.00022815,2]
[313964305,1707869442487,-500.0,0.00022815,2]
[313964306,1707869442496,-200.0,0.00022815,2]
[313964307,1707869442719,-200.0,0.00022815,2]
[313964308,1707869442729,-200.0,0.00022815,2]
[313964309,1707869442738,-152.15237158,0.00022828,2]
[313964310,1707869442748,-1000.0,0.000229,2]
[313964311,1707869442757,-1492.57958247,0.000229,2]
[313964312,1707869442856,-207.42041753,0.000229,2]
[313964314,1707869442866,-361.0494,0.000229,2]
[313964315,1707869442875,-3957.78622085,0.000229,2]
[313964316,1707869442884,-152.15237158,0.000229,2]
[313964317,1707869442893,-302.06830797,0.000229,2]
[313964318,1707869442902,-5000.0,0.000229,2]
[313964319,1707869442911,-249.73127944,0.000229,2]
[313964321,1707869442920,-322.75257968,0.000229,2]
[313964323,1707869442930,-2640.29769016,0.000229,2]
[313964325,1707869442939,-627.83243382,0.00022997,3]
[313964327,1707869442949,-2221.62124134,0.00022997,2]
[313964329,1707869442958,-1705.70540859,0.00022998,2]
[313964331,1707869442968,-200.11647614,0.00022998,2]
[313964333,1707869442977,-367.76448205,0.00022998,2]
[313964335,1707869442986,-2271.17394941,0.00022998,2]
[313964336,1707869442995,-468.86466092,0.00022998,2]
[313964337,1707869443004,-10012.26562628,0.00022998,2]
[313964338,1707869443032,-2374.97726816,0.00022998,2]
[313964339,1707869443041,-151.0214,0.00022998,3]
[313964340,1707869443051,-151.0214,0.00022998,3]
[313964341,1707869443060,-151.0214,0.00022998,3]
[313964342,1707869443070,-151.0214,0.00022998,3]
[313964343,1707869443079,-151.0214,0.00022998,3]
[313964344,1707869443088,-151.0214,0.00022998,3]
[313964345,1707869443098,-151.0214,0.00022998,3]
[313964346,1707869443107,-151.0214,0.00022998,3]
[313964347,1707869443117,-151.0214,0.00022998,3]
[313964348,1707869443127,-18.75664836,0.00022998,3]
[313964349,1707869445578,-132.26475164,0.00022998,3]
[313964350,1707869445588,-151.0214,0.00022998,3]
[313964351,1707869445597,-151.0214,0.00022998,3]
[313964352,1707869445606,-151.0214,0.00022998,3]
[313964353,1707869445615,-151.0214,0.00022998,3]
[313964354,1707869445624,-151.0214,0.00022998,3]
[313964355,1707869445634,-151.0214,0.00022998,3]
[313964356,1707869445643,-151.0214,0.00022998,3]
[313964357,1707869445652,-151.0214,0.00022998,3]
[313964358,1707869445661,-2377.4914294,0.00022998,2]
[313964359,1707869445670,-938.843223,0.00022998,2]
[313964360,1707869445679,-22869.60057798,0.00022998,2]
[313964361,1707869445691,-3184.21839743,0.00022998,2]
[313964363,1707869806177,390.04,0.00020279,2]
[313964364,1707869892089,177.27,0.000219,2]
[313964365,1707870052946,2000.0,0.00021831,2]
[313964366,1707870191081,1874.12,0.00021759,2]
[313964367,1707870233053,161.25,0.00021822,2]
[313964368,1707870292193,250.0,0.0002175,2]
[313964369,1707870299156,800.0,0.00021822,2]
[313964370,1707870309673,23890.0,0.00021778,2]
[313964371,1707870336238,382.72,0.00019897,2]
[313964372,1707870416814,150.0,0.00021832,2]
[313964373,1707870448574,159.80887427,0.00021818,2]
[313964378,1707870505846,177.27,0.000218,2]
[313964379,1707870562464,500.0,0.00021814,2]
[313964413,1707870637815,-422.19790322,0.00021903,2]
[313964414,1707870637824,-217.34883226,0.00021904,2]
[313964415,1707870637833,-300.0,0.00021917,2]
[313964416,1707870637843,-250.0,0.00021918,2]
[313964417,1707870637852,-10000.0,0.00021918,2]
[313964418,1707870637861,-870.38393849,0.00021918,2]
[313964419,1707870637871,-546.26,0.00021979,2]
[313964420,1707870637880,-179.32,0.00022038,2]
[313964421,1707870637889,-382.72,0.0002216,2]
[313964422,1707870637899,-181.22,0.00022197,2]
[313964423,1707870637908,-192.12989157,0.000222,2]
[313964424,1707870637917,-200.0,0.00022275,2]
[313964425,1707870637927,-499.99,0.00022275,2]
[313964426,1707870637936,-234.27,0.00022325,2]
[313964427,1707870637945,-3143.97,0.00022325,2]
[313964428,1707870637954,-260.11464927,0.00022348,2]
[313964429,1707870637963,-831.79,0.000225,2]
[313964430,1707870637972,-150.0,0.000225,2]
[313964431,1707870637981,-310.29,0.000225,2]
[313964432,1707870637990,-151.81,0.000226,2]
[313964433,1707870637999,-342.41,0.000226,2]
[313964434,1707870638008,-181.69,0.000226,2]
[313964435,1707870638019,-150.0,0.000226,2]
[313964436,1707870638028,-955.54,0.000226,2]
[313964437,1707870638037,-413.65,0.000226,2]
[313964438,1707870638046,-836.52,0.000226,2]
[313964439,1707870638057,-150.0,0.00022618,2]
[313964440,1707870638066,-203.0,0.00022657,2]
[313964441,1707870638075,-487.24146225,0.000228,3]
[313964442,1707870638084,-46895.0678,0.000228,2]
[313964443,1707870638094,-200.0,0.00022814,2]
[313964445,1707870638103,-200.0,0.00022815,2]
[313964446,1707870638112,-200.0,0.00022815,2]
[313964447,1707870638121,-200.0,0.00022815,2]
[313964448,1707870638131,-800.0,0.00022815,2]
[313964450,1707870638140,-200.0,0.00022815,2]
[313964451,1707870638150,-500.0,0.00022815,2]
[313964452,1707870638159,-30069.6418,0.000229,2]
[313964453,1707870638168,-18635.1134,0.000229,2]
[313964454,1707870638178,-324.6447,0.000229,2]
[313964455,1707870638187,-3627.9707024,0.000229,2]
[313964456,1707870638196,-150.0,0.000229,2]
[313964457,1707870638206,-5000.0,0.000229,2]
[313964458,1707870638215,-159.80887427,0.000229,2]
[313964459,1707870638224,-286.91056281,0.000229,2]
[313964460,1707870638234,-166.48751962,0.000229,2]
[313964462,1707870638243,-365.04814194,0.00022996,2]
[313964463,1707870638252,-12387.24289444,0.00022998,2]
[313964464,1707870638262,-570.96198976,0.00022998,2]
[313964465,1707870638271,-468.86466092,0.00022998,2]
[313964466,1707870638280,-24968.92729926,0.00022998,2]
[313964467,1707870638289,-155.0,0.00022998,2]
[313964468,1707870638298,-302.97404261,0.00022998,2]
[313964469,1707870638308,-804.26903147,0.00022998,2]
[313964470,1707870638317,-2000.0,0.00022998,2]
[313964471,1707870638326,-200.0,0.00022998,2]
[313964472,1707870638335,-1526.4138307,0.00022998,2]
[313964473,1707870638344,-534.1039563,0.00022998,2]
[313964474,1707870638353,-24288.9199999,0.00022998,2]
[313964475,1707870638363,-6003.580259,0.00022998,2]
[313964476,1707870638372,-180.71110917,0.00022999,2]
[313964477,1707870638381,-84781.09287885,0.00023,3]
[313964478,1707870638432,-526.22546462,0.00023,3]
[313964479,1707870638445,-1890.03714493,0.00023,3]
[313964480,1707870638456,-1999.02097761,0.00023,3]
[313964481,1707870638475,-1036.95497844,0.00023,3]
[313964484,1707870641156,-336.07034403,0.00023,3]
[313964511,1707870642751,-1120.62905459,0.00023,3]
[313964512,1707870642763,-8849.56241469,0.00023,3]
[313964513,1707870642776,-790.268669,0.00023,3]
[313964522,1707870645758,-981.61370118,0.00022999,2]
[313964523,1707870645767,-67.74430127,0.00023,3]
[313964524,1707870645817,-12599.09583597,0.00023,3]
[313964525,1707870645873,-2336.44244264,0.00023,3]
[313964526,1707870720640,876.83039745,0.0002093,2]
[313964527,1707870722198,2513.90859555,0.0002,2]
[313964528,1707870758806,360.0,0.00021814,2]
[313964529,1707870799781,19067.90623916,0.00021814,2]
[313964530,1707870809328,888.85168534,0.00021814,2]
[313964531,1707870814282,2522.62052649,0.00021814,2]
[313964532,1707870827317,395.78320681,0.00021814,2]
[313964533,1707870868289,368.97,0.00020227,2]
[313964534,1707871249719,166.86,0.00021869,2]
[313964535,1707871280509,712.0,0.00021869,2]
[313964536,1707871387761,376.79,0.00019974,2]
[313964537,1707871395483,750.0,0.00021856,2]
[313964538,1707871642047,153.31000214,0.00021812,2]
[313964539,1707871654962,422.19790322,0.00021899,2]
[313964540,1707871666614,2151.0809935,0.00021899,2]
[313964541,1707871717307,172.04,0.00021744,2]
[313964542,1707871731707,159.72247724,0.00021899,2]
[313964543,1707871757098,1000.0,0.00021802,2]
[313964549,1707871799574,1794.31,0.00021821,2]
[313964553,1707871827766,381.58,0.00019929,2]
[313964573,1707871831788,-734.66922033,0.0002191,2]
[313964574,1707871831801,-498.58895864,0.0002191,2]
[313964575,1707871831810,-443.49,0.00021911,2]
[313964576,1707871831820,-250.0,0.00021918,2]
[313964577,1707871831829,-250.0,0.00022,2]
[313964578,1707871831839,-298.01270489,0.00022,2]
[313964579,1707871831850,-500.0,0.00022,2]
[313964580,1707871831860,-158.05,0.00022049,2]
[313964581,1707871831869,-264.02629701,0.00022078,2]
[313964582,1707871831879,-153.31000214,0.00022084,2]
[313964583,1707871831889,-381.58,0.00022192,2]
[313964584,1707871831899,-500.0,0.00022274,2]
[313964585,1707871831908,-97.09292609,0.00022356,2]
[313964586,1707871831920,-56.21707605,0.00022356,2]
[313964587,1707871831930,-158.05,0.00022432,2]
[313964588,1707871831940,-499.99,0.00022432,2]
[313964589,1707871831949,-720.8,0.00022493,2]
[313964590,1707871831959,-165.54,0.00022572,2]
[313964591,1707871831969,-153.31000214,0.00022628,2]
[313964592,1707871831978,-300.0,0.0002264,2]
[313964593,1707871831989,-737.89,0.00022641,2]
[313964594,1707871831999,-203.0,0.00022769,2]
[313964595,1707871832009,-947.0,0.0002277,2]
[313964596,1707871832018,-137.3455568,0.00022815,2]
[313964597,1707871832043,-20.7044432,0.00022815,2]
[313964598,1707871832053,-200.0,0.00022815,2]
[313964599,1707871832064,-323.3155568,0.00022815,2]
[313964600,1707871832077,-476.6844432,0.00022815,2]
[313964601,1707871832086,-200.0,0.00022815,2]
[313964603,1707871832097,-204.82924771,0.00022815,2]
[313964605,1707871832110,-295.17075229,0.00022815,2]
[313964607,1707871832119,-35.17307899,0.00022885,2]
[313964610,1707871832140,-9212.78260021,0.00022885,2]
[313964611,1707871832152,-3066.98559452,0.00022885,2]
[313964612,1707871832161,-578.0074,0.00022898,2]
[313964613,1707871832171,-88936.65526727,0.00022899,2]
[313964614,1707871832180,-1000.0,0.000229,2]
[313964615,1707871832189,-3325.63981057,0.000229,2]
[313964616,1707871832199,-479.47859234,0.000229,2]
[313964617,1707871832209,-5000.0,0.000229,2]
[313964618,1707871832218,-153.31000214,0.000229,2]
[313964619,1707871832228,-313.65028912,0.000229,2]
[313964620,1707871832237,-1760.19846012,0.000229,2]
[313964621,1707871832246,-215.16838646,0.000229,2]
[313964622,1707871832255,-555.29019088,0.00022958,3]
[313964623,1707871832265,-722.69,0.00022958,2]
[313964624,1707871832274,-293.92420876,0.0002299,2]
[313964625,1707871832284,-155.0,0.00022998,2]
[313964626,1707871832293,-503.82903438,0.00022998,2]
[313964627,1707871832302,-5466.92262612,0.00022998,2]
[313964628,1707871832311,-1542.3483001,0.00022998,2]
[313964629,1707871832321,-468.86466092,0.00022998,2]
[313964630,1707871832330,-1403.21203418,0.00022998,2]
[313964631,1707871832347,-1777.03728473,0.00022998,2]
[313964632,1707871832362,-9206.99357553,0.00022998,2]
[313964633,1707871832371,-4729.80918066,0.00022998,2]
[313964634,1707871832380,-1055.80490423,0.00022998,2]
[313964635,1707871832389,-203.73243669,0.00022998,2]
[313964636,1707871832398,-250.08465082,0.00022998,2]
[313964637,1707871832408,-1050.85386154,0.00022998,2]
[313964638,1707871832417,-640.41658753,0.00022998,2]
[313964639,1707871832426,-229.52697317,0.00022998,2]
[313964640,1707871832436,-2916.56350754,0.00022998,2]
[313964641,1707871832445,-266.84674691,0.00022998,2]
[313964642,1707871832454,-339.40462943,0.00022998,2]
[313964643,1707871832464,-1119.01036897,0.00022998,2]
[313964644,1707871832473,-158.55570567,0.00022998,2]
[313964645,1707871832483,-151.0214,0.00022998,3]
[313964646,1707871832492,-151.0214,0.00022998,3]
[313964647,1707871832501,-151.0214,0.00022998,3]
[313964648,1707871832511,-151.0214,0.00022998,3]
[313964649,1707871832520,-151.0214,0.00022998,3]
[313964650,1707871832529,-151.0214,0.00022998,3]
[313964651,1707871832538,-151.0214,0.00022998,3]
[313964652,1707871832548,-151.0214,0.00022998,3]
[313964653,1707871832557,-151.0214,0.00022998,3]
[313964654,1707871832566,-151.0214,0.00022998,3]
[313964655,1707871832575,-151.0214,0.00022998,3]
[313964656,1707871832585,-151.0214,0.00022998,3]
[313964657,1707871832594,-151.0214,0.00022998,3]
[313964658,1707871832604,-757.57876505,0.00022998,2]
[313964659,1707871832613,-645.6611799,0.00022998,2]
[313964660,1707871832622,-33489.0124999,0.00022998,2]
[313964661,1707871832632,-9711.8698404,0.00022998,2]
[313964662,1707871832641,-1320.598629,0.00022998,2]
[313964663,1707871832650,-155.0,0.00022999,2]
[313964664,1707871832659,-217.34883226,0.00022999,2]
[313964665,1707871832669,-349.18255878,0.00022999,2]
[313964666,1707871832678,-500.0,0.00022999,2]
[313964667,1707871832687,-235.32159405,0.00022999,2]
[313964668,1707871832696,-500.0,0.00022999,2]
[313964669,1707871832705,-210.46037936,0.00022999,2]
[313964670,1707871832714,-150.0,0.00022999,2]
[313964671,1707871832723,-150.0,0.00022999,2]
[313964672,1707871832732,-150.0,0.00022999,2]
[313964673,1707871832742,-303716.19913556,0.00023,3]
[313964674,1707871832755,-20836.73260829,0.00023,3]
[313964675,1707871832766,-1532.68583263,0.00023,3]
[313964676,1707871832777,-373.51188536,0.00023,3]
[313964700,1707871837830,-324.44606366,0.00023,3]
[313964707,1707871837894,-12754.58151614,0.00023,3]
[313964712,1707871837950,-876.73274452,0.00023,3]
[313964713,1707871837982,-297.60793773,0.00023,3]
[313964714,1707871838084,-276.08104344,0.00023,3]
[313964715,1707871838134,-1541.48475069,0.00023,3]
[313964751,1707871840461,-246334.61279996,0.00023,3]
[313964752,1707871840573,-341.06870201,0.00023,3]
[313964753,1707871840585,-341.62326299,0.00023,3]
[313964754,1707871840598,-1559.91272436,0.00023,3]
[313964755,1707871840641,-503.48970438,0.00023,3]
[313964756,1707871840701,-237956.97681019,0.00023,3]
[313964765,1707871843008,-12825.75529073,0.00023,3]
[313964766,1707871843067,-712.6633968,0.00023,3]
[313964767,1707871843081,-2059.4948,0.00023,3]
[313964768,1707871843155,-8482.55998297,0.00023,3]
[313964781,1707871845837,-598.03646811,0.00023,3]
[313964782,1707871845848,-1673.38813217,0.00023,3]
[313964783,1707871846111,-383.19215595,0.00023,3]
[313964812,1707871946166,563.41535426,0.00020466,2]
[313964813,1707871964179,300.91426604,0.00020361,2]
[313964814,1707871989744,276.9818,0.00021812,2]
[313964815,1707872085669,300.0,0.00021812,2]
[313964816,1707872139229,155.0,0.00021812,2]
[313964817,1707872157213,155.945251,0.00021812,2]
[313964818,1707872246442,200.0,0.00021659,2]
[313964819,1707872303354,356.14,0.00019752,2]
[313964821,1707872346079,177.27,0.0002188,2]
[313964822,1707872351241,4545.09179447,0.000219,2]
[313964823,1707872361127,1143.08375452,0.000219,2]
[313964824,1707872361620,191.95382053,0.000219,2]
[313964826,1707872364375,1495.25,0.00021572,2]
[313964827,1707872364413,281.29030073,0.000219,2]
[313964828,1707872367636,504.20181444,0.000219,2]
[313964829,1707872369768,655.03756322,0.000219,2]
[313964830,1707872373635,524.66050073,0.000219,2]
[313964831,1707872375657,216.81499801,0.000219,2]
[313964832,1707872380678,178.83592973,0.000219,2]
[313964833,1707872385575,155.0,0.000219,2]
[313964834,1707872391032,626.44937518,0.000219,2]
[313964835,1707872391348,198.05422845,0.000219,2]
[313964836,1707872392052,10585.13536687,0.000219,2]
[313964837,1707872393178,1809.05606318,0.00021813,2]
[313964838,1707872393686,2332.65275521,0.000219,2]
[313964839,1707872393860,1233.25817897,0.000219,2]
[313964840,1707872398291,16858.09259618,0.000219,2]
[313964841,1707872402374,150.0,0.000219,2]
[313964843,1707872440417,427.28,0.00021625,2]
[313964845,1707872478827,8983.26709036,0.000219,2]
[313964846,1707872484151,8983.26709019,0.000219,2]
[313964848,1707872534477,158.05,0.00021603,2]
[313964849,1707872564284,2005.9381,0.00021813,2]
[313964850,1707872585070,1582.92405523,0.00021818,2]
[313964851,1707872617331,172.04,0.00021394,2]
[313964852,1707872626922,152.03085232,0.0002181,2]
[313964853,1707872631915,152.03085221,0.00021862,2]
[313964856,1707872700546,840.0,0.00021317,2]
[313964858,1707872724861,4782.868,0.00021813,2]
[313964860,1707872773821,1385.05854837,0.00021813,2]
[313964861,1707872787674,250.0,0.0002188,2]
[313964863,1707872806633,362.48,0.00019482,2]
[313964864,1707872806842,362.48,0.00021745,2]
[313964866,1707872819225,8084.94038119,0.000219,2]
[313964867,1707872824663,8084.94038117,0.000219,2]
[313964869,1707872855850,150.0,0.0002188,2]
[313964871,1707872893192,1381.0,0.00021341,2]
[313964878,1707872934914,334.0,0.00021367,2]
[313964883,1707872949354,3645.7282088,0.000219,2]
[313964902,1707872959959,177.27,0.0002188,2]
[313964903,1707872964397,1211.92622978,0.00021813,2]
[313964906,1707872973814,203.0,0.00021872,2]
[313964907,1707872984718,156.21,0.00021493,2]
[313964913,1707873031974,-297.17546881,0.00021906,2]
[313964914,1707873031984,-655.03756322,0.00021907,2]
[313964915,1707873031993,-1000.0,0.00021909,2]
[313964916,1707873032003,-150.0,0.00021909,2]
[313964917,1707873032013,-417.38696797,0.0002191,2]
[313964918,1707873032024,-579.82184926,0.0002191,2]
[313964919,1707873032045,-17040.82591766,0.0002191,2]
[313964920,1707873032091,-2060.22361141,0.0002191,2]
[313964921,1707873032104,-562.34159793,0.0002191,2]
[313964922,1707873032115,-461.43417062,0.0002191,2]
[313964923,1707873032127,-7434.0,0.0002191,2]
[313964924,1707873032138,-910.41044073,0.0002191,2]
[313964925,1707873032154,-9711.09942044,0.0002191,2]
[313964926,1707873032205,-2587.50978063,0.0002191,2]
[313964927,1707873032216,-442.11249274,0.0002191,2]
[313964928,1707873032228,-1031.51541564,0.0002191,2]
[313964929,1707873032237,-63.53194285,0.0002191,2]
[313964930,1707873032248,-167.04050417,0.0002191,2]
[313964931,1707873032258,-468.86466092,0.00021911,2]
[313964932,1707873032267,-445.91267717,0.00021911,2]
[313964933,1707873032276,-190.82346222,0.00021911,2]
[313964934,1707873032285,-504.73025672,0.00021911,2]
[313964935,1707873032295,-335.82807151,0.00021911,2]
[313964936,1707873032304,-274.71086452,0.00021911,2]
[313964937,1707873032314,-203.5700347,0.00021911,2]
[313964938,1707873032323,-486.30684603,0.00021911,2]
[313964939,1707873032332,-6971.32812212,0.00021911,2]
[313964941,1707873032342,-410.84471108,0.00021911,2]
[313964943,1707873032353,-264.92364836,0.00021911,2]
[313964945,1707873032362,-2322.42557907,0.00021911,2]
[313964947,1707873032371,-15468.69588404,0.00021911,2]
[313964949,1707873032380,-835.12030683,0.00021911,2]
[313964951,1707873032390,-4537.02199108,0.00021912,2]
[313964953,1707873032400,-104470.2553989,0.00021913,2]
[313964956,1707873032417,-124596.13835783,0.00021913,2]
[313964959,1707873032426,-499.99,0.00021913,2]
[313964961,1707873032435,-1600.8,0.00021913,2]
[313964964,1707873032445,-8084.94038117,0.00021916,2]
[313964967,1707873032454,-250.0,0.00021918,2]
[313964970,1707873032464,-1915.87,0.00021918,2]
[313964973,1707873032474,-8084.94038117,0.00021967,2]
[313964976,1707873032482,-1211.92622978,0.00021968,2]
[313964979,1707873032492,-2796.14829714,0.00022,2]
[313964982,1707873032502,-8084.94038117,0.00022018,2]
[313964985,1707873032513,-8084.94038117,0.0002207,2]
[313964988,1707873032522,-1574.43951554,0.00022079,2]
[313964991,1707873032532,-997.20044719,0.00022079,2]
[313964994,1707873032541,-5420.02235415,0.00022083,2]
[313964996,1707873032551,-465.02272157,0.00022083,2]
[313964999,1707873032560,-152.03085221,0.00022119,2]
[313965002,1707873032569,-8084.94038117,0.00022121,2]
[313965005,1707873032578,-1211.92622978,0.00022124,2]
[313965008,1707873032588,-253.62615809,0.00022154,2]
[313965011,1707873032601,-152.03085221,0.00022171,2]
[313965015,1707873032610,-8084.94038117,0.00022173,2]
[313965018,1707873032619,-152.03085221,0.00022222,2]
[313965020,1707873032628,-8084.94038117,0.00022224,2]
[313965022,1707873032638,-152.03085221,0.00022274,2]
[313965024,1707873032646,-8084.94038117,0.00022275,2]
[313965025,1707873032655,-1211.92622978,0.00022279,2]
[313965027,1707873032665,-152.03085221,0.00022325,2]
[313965029,1707873032674,-8084.94038117,0.00022327,2]
[313965031,1707873032684,-152.03085221,0.00022377,2]
[313965033,1707873032693,-7730.26852166,0.00022378,2]
[313965036,1707873032706,-354.67185951,0.00022378,2]
[313965038,1707873032714,-28.24733869,0.00022428,2]
[313965040,1707873032727,-326.01266131,0.00022428,2]
[313965042,1707873032735,-152.03085221,0.00022428,2]
[313965044,1707873032745,-2516.10698966,0.00022429,2]
[313965046,1707873032756,-4826.80773354,0.00022429,2]
[313965048,1707873032768,-742.02565797,0.00022429,2]
[313965050,1707873032778,-1211.92622978,0.00022434,2]
[313965052,1707873032787,-152.03085221,0.0002248,2]
[313965054,1707873032796,-3837.18243467,0.00022481,2]
[313965055,1707873032816,-1065.54810808,0.00022481,2]
[313965056,1707873032828,-1639.97491973,0.00022481,2]
[313965057,1707873032841,-1394.19054399,0.00022481,2]
[313965058,1707873032854,-148.0443747,0.00022481,2]
[313965059,1707873032863,-506.01488073,0.000225,2]
[313965060,1707873032874,-831.66345468,0.000225,2]
[313965061,1707873032885,-502.50678473,0.000225,2]
[313965062,1707873032897,-1073.34824939,0.000225,2]
[313965068,1707873038168,-1334.02349408,0.000225,2]
[313965069,1707873038312,-8139.68603083,0.000225,2]
[313965070,1707873038323,-155.0,0.000225,2]
[313965071,1707873038332,-434.12,0.000225,2]
[313965072,1707873038341,-150.0,0.000225,2]
[313965073,1707873038354,-152.03085221,0.00022531,2]
[313965074,1707873038364,-8084.94038117,0.00022532,2]
[313965075,1707873038373,-152.03085221,0.00022583,2]
[313965076,1707873038383,-8084.94038117,0.00022584,2]
[313965077,1707873038392,-1211.92622978,0.00022589,2]
[313965078,1707873038403,-152.03085221,0.00022634,2]
[313965079,1707873038414,-8084.94038117,0.00022635,2]
[313965081,1707873038427,-152.03085221,0.00022686,2]
[313965083,1707873038436,-8084.94038117,0.00022686,2]
[313965085,1707873038446,-151.0214,0.00022698,3]
[313965086,1707873038455,-151.0214,0.00022698,3]
[313965087,1707873038469,-151.0214,0.00022698,3]
[313965088,1707873038478,-151.0214,0.00022698,3]
[313965089,1707873038488,-151.0214,0.00022698,3]
[313965090,1707873038497,-151.0214,0.00022698,3]
[313965091,1707873038507,-155.44329097,0.000227,2]
[313965093,1707873038517,-152.03085221,0.00022737,2]
[313965094,1707873038526,-8084.94038117,0.00022738,2]
[313965096,1707873038536,-1211.92622978,0.00022745,2]
[313965098,1707873038545,-280.13227264,0.00022768,2]
[313965100,1707873038555,-174.45427474,0.0002278,2]
[313965102,1707873038564,-3472.5328785,0.0002278,2]
[313965104,1707873038573,-5000.0,0.0002278,2]
[313965105,1707873038584,-152.03085221,0.00022789,2]
[313965106,1707873038593,-8084.94038117,0.00022789,2]
[313965107,1707873038605,-1100.95013656,0.00022789,2]
[313965108,1707873038614,-927.23469062,0.00022789,2]
[313965109,1707873038624,-182.30456672,0.0002279,2]
[313965110,1707873038633,-3472.53287847,0.00022791,2]
[313965111,1707873038643,-54419.8,0.000228,2]
[313965112,1707873038652,-84381.41,0.000228,2]
[313965113,1707873038662,-3472.53287847,0.00022802,2]
[313965114,1707873038671,-3472.53287847,0.00022813,2]
[313965115,1707873038681,-200.0,0.00022814,2]
[313965116,1707873038691,-200.0,0.00022814,2]
[313965117,1707873038700,-200.0,0.00022815,2]
[313965118,1707873038710,-800.0,0.00022815,2]
[313965119,1707873038719,-200.0,0.00022815,2]
[313965120,1707873038729,-500.0,0.00022815,2]
[313965121,1707873038739,-3472.53287847,0.00022824,2]
[313965122,1707873038750,-3472.53287847,0.00022835,2]
[313965123,1707873038763,-1100.95013656,0.00022845,2]
[313965124,1707873038772,-927.23469062,0.00022845,2]
[313965125,1707873038782,-3472.53287847,0.00022845,2]
[313965126,1707873038792,-3472.53287847,0.00022856,2]
[313965127,1707873038802,-3472.53287847,0.00022867,2]
[313965128,1707873038812,-182.30456672,0.0002287,2]